Cogmind - Beta 16 @@@ ROGUE MODE // 2025.11.08 @ 21:39:36 Player: keygenpie Result: Destroyed by S-10 Pest with Light Assault Rifle Performance ------------- Evolutions (0) 0 Regions Visited (2) 400 Robots Destroyed (11) 55 Value Destroyed (249) 249 Prototype IDs (3) 60 Alien Tech Used (0) 0 Bonus (0) 0 TOTAL SCORE: 764 Bonus ------- None Cogmind --------- Core Integrity 0/250 Matter 285/300 Energy 247/250 System Corruption 0% Temperature Cool (0) Movement Walking (120) Location -10/Subcaves Parts ------- > --- POWER (1) -------- Ion Engine > --- PROPULSION (2) --- Aluminum Leg Aluminum Leg > --- UTILITY (2) ------ Improved Heat Sink Small Storage Unit > --- WEAPON (2) ------- Salvaging Laser Salvaging Laser > --- INVENTORY (8) ---- Ion Engine Heat Sink Tractor Beam Peak State ------------ > --- POWER ------------ Ion Engine > --- PROPULSION ------- Aluminum Leg Aluminum Leg > --- UTILITY ---------- Small Storage Unit Improved Terrain Scanner > --- WEAPON ----------- Light Assault Rifle Mining Laser > --- INVENTORY -------- Ion Engine Compact Wheel Heat Sink Tractor Beam [Rating: 9] Favorites ----------- Power Ion Engine Engine Ion Engine Propulsion Aluminum Leg Leg Aluminum Leg Wheel Compact Wheel Utility Small Storage Unit Device Improved Terrain Scanner Storage Small Storage Unit Weapon Light Assault Rifle Energy Gun Salvaging Laser Ballistic Gun Light Assault Rifle Special Weapon Mining Laser Build | -11 -10 -10 ------- Run | Yrd Mat Sub Slots Evolved . | . . . Power . | . . . Propulsion . | . . . Utility . | . . . Weapon . | . . . Parts Attached 20 | 6 11 3 Power 4 | 1 3 . Engine 4 | 1 3 . Core . | . . . Reactor . | . . . Propulsion 6 | 2 4 . Treads . | . . . Leg 4 | . 4 . Wheel 2 | 2 . . Hover . | . . . Flight . | . . . Utility 3 | 1 1 1 Device 2 | . 1 1 Storage 1 | 1 . . Processor . | . . . Hackware . | . . . Protection . | . . . Artifact . | . . . Weapon 7 | 2 3 2 Energy Gun 3 | 1 . 2 Energy Cannon . | . . . Ballistic Gun 3 | 1 2 . Ballistic Cannon . | . . . Launcher . | . . . Special Weapon 1 | . 1 . Impact Weapon . | . . . Slashing Weapon . | . . . Piercing Weapon . | . . . Special Melee Weapon . | . . . Unidentified Prototypes . | . . . Parts Lost 5 | . 4 1 Power . | . . . Propulsion 1 | . 1 . Utility . | . . . Weapon 4 | . 3 1 Highest Loss Streak 3 | . 3 1 To Critical Strikes . | . . . Average Backups 3 | 1 3 3 Power . | . . 1 Propulsion . | 1 1 . Utility 1 | . 1 2 Weapon . | . . . Tool/Special . | . . . Unused Backups 3 | . . 3 Power 1 | . . 1 Propulsion . | . . . Utility 2 | . . 2 Weapon . | . . . Tool/Special . | . . . Average Slot Usage (%) 89 | . 86 95 Engine 14 | . 14 14 Leg 18 | . 13 28 Wheel 9 | . 14 . Device 6 | . 4 10 Storage 14 | . 14 14 Energy Gun 9 | . 6 15 Ballistic Gun 10 | . 12 6 Special Weapon 6 | . 6 5 Peak Build Rating 9 | 6 9 9 Average Rating 6 | 3 6 8 On Entrance 5 | . 6 9 Avg Prop Armor Cover (%) . | . . . Naked Turns . | . . . Heaviest Build 14 | 12 14 13 Greatest Support 26 | 26 26 20 Greatest Overweight (x) . | . . . Average Overweight (x) . | . . . Largest Inventory Capacity 8 | 8 8 8 Average Capacity 7 | 5 8 8 Most Carried 6 | 4 6 5 Average Carried 3 | 1 3 3 Final Capacity 8 | 8 8 8 Final Carried 3 | 2 3 3 Class Distribution -------------------- 51% | Scavenger-Mutant 48% | Mutant Dominant Class ---------------- Mutant | -10/Materials Scavenger-Mutant | -10/Subcaves Resources | -11 -10 -10 ----------- Run | Yrd Mat Sub Matter Collected 476 | 113 243 120 Remotely . | . . . Salvage Created 277 | . 225 52 Parts 23 | . 19 4 Haulers Intercepted . | . . . Recyclers Shooed 1 | . 1 . Parts Field Recycled . | . . . Retrieved Matter . | . . . Parts Self-Destructed 5 | . . 5 Prevented . | . . . Parts Restored . | . . . Kills | -11 -10 -10 ------- Run | Yrd Mat Sub Combat Hostiles Destroyed 11 | . 10 1 Guns 10 | . 9 1 Cannons 1 | . 1 . Classes Destroyed 3 | . 2 1 Swarmer 6 | . 6 . Grunt 4 | . 4 . Subdweller 1 | . . 1 Best Kill Streak 3 | . 3 1 Combat Bots Only 3 | . 3 1 Max Kills in Single Turn 1 | . 1 1 Gunslinging . | . . . Exploded . | . . . Melee . | . . . Uniques/NPCs Destroyed . | . . . Combat | -11 -10 -10 -------- Run | Yrd Mat Sub Hostile Shots Fired 120 | . 110 10 Missed 28 | . 27 1 Hits 92 | . 83 9 Projectile 92 | . 83 9 Critical Strikes 1 | . . 1 Damage Taken 992 | . 816 176 Core 257 | . 230 27 Absorbed by Shields . | . . . Core Remaining (%) 100 | 100 . . Volleys Fired 64 | . 49 15 Largest 2 | . 2 2 Hottest 120 | . 120 120 Shots Fired 100 | . 79 21 Gun 89 | . 73 16 Cannon . | . . . Launcher . | . . . Special 11 | . 6 5 Kinetic 58 | . 52 6 Thermal 42 | . 27 15 Explosive . | . . . Electromagnetic . | . . . Robot Hit Streak 11 | . 11 7 Robot Miss Streak 5 | . 5 1 Penetration Max . | . . . Secondary Targets 2 | . 2 . Max Gunslinging Chain 1 | . 1 . Shots Hit Robots 50 | . 42 8 Core Hits 18 | . 16 2 Critical Kills . | . . . Critical Parts Destroyed 1 | . 1 . Critical Strikes 3 | . 3 . Burn 2 | . 2 . Destroy 1 | . 1 . Melee Attacks . | . . . Impact . | . . . Slashing . | . . . Piercing . | . . . Sneak Attacks . | . . . Combat Hostiles . | . . . Follow-up Attacks . | . . . Damage Inflicted 528 | . 475 53 Guns 480 | . 427 53 Cannons . | . . . Explosions . | . . . Melee . | . . . Ramming . | . . . Kinetic 397 | . 354 43 Thermal 131 | . 121 10 Explosive . | . . . Electromagnetic . | . . . Impact . | . . . Slashing . | . . . Piercing . | . . . Highest Corruption . | . . . Average Corruption . | . . . Corruption Purged . | . . . Corruption Blocked . | . . . Overload Shots . | . . . Overflow Damage . | . . . Projectiles . | . . . Explosions . | . . . Melee . | . . . Knockbacks . | . . . Impact . | . . . Kinetic . | . . . Secondary . | . . . Self-Inflicted Damage . | . . . Shots . | . . . Rammed . | . . . Targets Rammed . | . . . Kicked . | . . . Crushed . | . . . Highest Temperature 58 | . 58 . Average Temperature 14 | . 14 . Received Heat Transfer 282 | . 282 . Siege Activations . | . . . Martial Activations . | . . . Shielding Activations . | . . . Robots Disrupted . | . . . Combat Hostiles . | . . . Robots Corrupted . | . . . Combat Hostiles . | . . . Parts Fried . | . . . Impact Corruptions . | . . . Robots Melted . | . . . Combat Hostiles . | . . . Parts Melted 1 | . 1 . Heat Transferred 495 | . 470 25 Parts Sabotaged . | . . . Parts Stolen . | . . . Parts Stripped . | . . . Power Chain Reactions . | . . . Alert | -11 -10 -10 ------- Run | Yrd Mat Sub Maximum Alert Level . | . . . Low Security (%) 100 | 100 100 . Level 1 . | . . . Level 2 . | . . . Level 3 . | . . . Level 4 . | . . . Level 5 . | . . . High Security . | . . . Max Security . | . . . Peak Influence 104 | . 104 . Initial . | . . . Average 39 | . 43 . Influence Increases 290 | . 290 . Destroy 0b10 Robot/C 200 | . 200 . Destroy Leader 40 | . 40 . Successful Hack 18 | . 18 . Destroy Structure 2 | . 2 . Lose Combat Pursuer 30 | . 30 . Influence Decreases 290 | . 290 . Time Decay 250 | . 250 . Lost Part 40 | . 40 . Squads Dispatched 1 | . 1 . Investigation . | . . . Extermination . | . . . Reinforcement 1 | . 1 . Assault . | . . . Garrison . | . . . Intercept . | . . . Searches Triggered . | . . . Construction Impeded . | . . . Haulers Reinforced . | . . . Active Scanning Responses . | . . . Cargo Convoy Interrupts . | . . . Stealth | -11 -10 -10 --------- Run | Yrd Mat Sub Distress Signals 1 | . 1 . Communications Jammed . | . . . Distress Signals . | . . . Times Spotted 26 | . 21 5 Peak Tracking Total 6 | . 6 3 Tactical Retreats 2 | . 2 . Traps | -11 -10 -10 ------- Run | Yrd Mat Sub Traps Triggered . | . . . Indirectly . | . . . Trap Hack Attempts . | . . . Triggered . | . . . Disarmed . | . . . Reprogrammed . | . . . Reused . | . . . Traps Extracted . | . . . Installed . | . . . Triggered . | . . . Machines | -11 -10 -10 ---------- Run | Yrd Mat Sub Machines Disabled . | . . . Max in Single Turn . | . . . Machines Repaired . | . . . Machines Dismantled . | . . . Machines Sabotaged . | . . . Overloaded Fab Kills . | . . . Hacking | -11 -10 -10 --------- Run | Yrd Mat Sub Machines Accessed 2 | . 2 . Terminals 2 | . 2 . Fabricators . | . . . Repair Stations . | . . . Recycling Units . | . . . Scanalyzers . | . . . Garrison Access . | . . . Total Hacks 3 | . 3 . Successful 2 | . 2 . Failed 1 | . 1 . Catastrophic . | . . . Database Lockouts . | . . . Manual . | . . . Terminals 3 | . 3 . Fabricators . | . . . Repair Stations . | . . . Recycling Units . | . . . Scanalyzers . | . . . Garrison Access . | . . . Terminal Hacks 2 | . 2 . Prototype ID Bank 1 | . 1 . Locate Traps 1 | . 1 . Fabricator Hacks . | . . . Repair Station Hacks . | . . . Recycling Unit Hacks . | . . . Scanalyzer . | . . . Garrison Access Hacks . | . . . Unauthorized Hacks . | . . . Terminals . | . . . Fabricators . | . . . Repair Stations . | . . . Recycling Units . | . . . Scanalyzers . | . . . Garrison Access . | . . . Data Cores Recovered . | . . . Used . | . . . Hacking Detections 2 | . 2 . Full Trace Events . | . . . Feedback Events . | . . . Feedback Blocked . | . . . Robot Schematics Acquired . | . . . Robots Built . | . . . Authchips . | . . . Time . | . . . Total Robot Build Rating . | . . . Part Schematics Acquired . | . . . Parts Built . | . . . Authchips . | . . . Time . | . . . Total Part Build Rating . | . . . Part Studies Acquired . | . . . Parts Repaired . | . . . Time . | . . . Parts Recycled . | . . . Recycled Matter . | . . . Retrieved Matter . | . . . Retrieved Components . | . . . Parts Scanalyzed . | . . . Part Schematics Acquired . | . . . Parts Damaged . | . . . Bothacking | -11 -10 -10 ------------ Run | Yrd Mat Sub Used RIF Installer . | . . . Robots Hacked . | . . . Non-combat . | . . . Combat . | . . . Robot Hacks Applied . | . . . Relay Couplers Released . | . . . Fabnet Peak Effective % . | . . . Robots Rewired . | . . . Allies Hacked . | . . . Hacks Repelled . | . . . Allies | -11 -10 -10 -------- Run | Yrd Mat Sub Total Allies . | . . . Largest Group . | . . . Highest-Rated Group . | . . . Highest-Rated Ally . | . . . Total Orders . | . . . Ally Attacks . | . . . Total Damage . | . . . Kills . | . . . Allies Corrupted . | . . . Allies Melted . | . . . Intel | -11 -10 -10 ------- Run | Yrd Mat Sub Active Infowar (turns) 222 | . 174 48 Terrain 222 | . 174 48 Robot Analysis Total . | . . . Derelict Logs Recovered . | . . . Drone Launches . | . . . Drone Recoveries . | . . . Exploration | -11 -10 -10 ------------- Run | Yrd Mat Sub Turns Passed 994 | 63 609 322 Spaces Moved 662 | 55 407 200 Core 3 | 3 . . Treads . | . . . Legs 391 | . 191 200 Wheels 268 | 52 216 . Hover . | . . . Flight . | . . . Fastest Speed 50 | 50 90 120 Average Speed 107 | 87 104 120 Slowest Speed 120 | 90 120 120 Overloaded Moves . | . . . Propulsion Burnouts . | . . . Robots Hopped . | . . . Potential Cave-ins . | . . . Cave-ins Triggered . | . . . Exploration Rate (%) 21 | 4 46 15 Regions Visited 2 Branch Regions 1 Pre-discovered Areas . | . . . Known Exits Taken . | . . . Unknown Exits Taken 2 | 1 1 . Scrap Searched . | . . . Spaces Dug 2 | . 2 . Terrain Destroyed 2 | . 2 . Melee . | . . . Projectile 2 | . 2 . AOE . | . . . Terrain Rammed . | . . . Walls Destroyed . | . . . Machines Disabled . | . . . Actions | -11 -10 -10 --------- Run | Yrd Mat Sub Total 835 | 69 508 258 Wait 58 | 1 24 33 Move 660 | 54 406 200 Hop . | . . . Pick Up 24 | 8 12 4 Fast Attach . | . . . Attach 18 | 6 9 3 Detach . | . . . Swap 2 | . 2 . Drop 9 | . 6 3 Fire 64 | . 49 15 Melee . | . . . Ram . | . . . Kick . | . . . Crush . | . . . Escape Stasis . | . . . Rewire . | . . . Trap . | . . . Miscellaneous . | . . . Route ------- -11/Scrapyard -10/Materials (discovered 2 exits: [*Min] / [*Sub]) -10/Subcaves (discovered 1 exit: [Scr]) History --------- Turn | Location | Event 11 | -11/Scrapyard | Discovered new exit (range 15) 64 | -11/Scrapyard | Entered Materials 65 | -10/Materials | Met a group of wandering Federalists 71 | -10/Materials | Discovered new exit (range 11) 209 | -10/Materials | Discovered new exit (range 12) 315 | -10/Materials | Build established: Mutant 345 | -10/Materials | Core integrity fell below 50% 393 | -10/Materials | Lost 3 parts (1n2w) 397 | -10/Materials | Core integrity fell below 20% 673 | -10/Materials | Entered Subcaves 674 | -10/Subcaves | Continued accompanying wandering Federalists (6) 674 | -10/Subcaves | Approached by a straggling Scientist 762 | -10/Subcaves | Build established: Scavenger-Mutant 812 | -10/Subcaves | Lost 4 allies 911 | -10/Subcaves | A swath of the cavern ceiling suddenly collapsed 995 | -10/Subcaves | Destroyed by S-10 Pest with Light Assault Rifle Last Messages --------------- XW-VGL(c): "I think it's somewhere southwest of here" 00834_ A derelict emerges from the shadows: "Hey wait up! Finally some friendlies. We were scared out of our wits watching Subs pass by here several times." 00849_ Acquired 15 matter. 00870_ H0-UQS(g): "I know we'll find it eventually." XW-VGL(c): "I think it's somewhere southwest of here" 00911_ Salvaging Laser crushed. A swath of the cavern ceiling suddenly collapses. 00912_ PG-Q8T(g): "I swear these Subs are restructuring the caves every time we're not looking." XW-VGL(c): "I think it's somewhere southwest of here" XW-VGL(c): "I think it's somewhere west of here" Map ----- +----------------------------------------------------+ | ????????????????##??????# ###???????????????? | | ????????????????????????# #???????????????? | | ???????????????????????## ##???????????????? | | ???????????????????????# ##???##???????????? | | ???????????????????????# #???# #???????????? | | ??????????????????????## ###" ###? #???????????? | | ??????????????????????# ###""" ## #???????????? | | ??????????????????????## ##"""""" #????????????? | | ??????????????????????# ##"#"###"" #????????????? | | ??????????????????????##""##" #"#" #????????????? | | ??????????????????????#######!###" ##????????????? | | ??????????????????????# ?[%### ##????????????? | | ??????????????????????## =#?### ##???????????? | | ???????????????????????## ?% ???# #???????????? | | ????????????????????????## ??# #???????????? | | ??????????????????????????# ?##### #???????????? | | ?????????????????????#####? ??# ##???????????? | | ?????????????????????? ## ?##" #????????????? | | ??????????????????????# ?"?####"# #????????????? | | ??????????????????????# ?"##"#"#"# #????????????? | | ?????????????????????## ##;#""#"# ##????????????? | | ?????????????????????# #;#"##;; #?????????????? | | ?????????????????????# ;#;;; #?????????????? | | ??????????????????????# ; ## #?????????????? | | ??????????????????????## ##??##?????????????? | | ???????????????????????##@ s #??????????????????? | | ????????????????????????##s #??????????????????? | | ?????????????????????????# #??????????????????? | | ????????????????????????# ###??????????????????? | | ???????????????????????# #????????????????????? | | ??????????????????????# #????????????????????? | | ?????????????????????# #????????????????????? | | ?????????????????????### #????????????????????? | | ???????????????????????# #????????????????????? | | ??????????????????????? ###????????????????????? | | ??????????????????????? ???????????????????????? | | ?????????????????????? ???????????????????????? | | ?????????????????????? ???????????????????????? | | ?????????????????????? ???????????????????????? | | ?????????????????????# ???????????????????????? | | ?????????????????????## ???????????????????????? | | ??????????????????????# ???????????????????????? | | ???????????????????????? ????????????????????????? | | ?????????????????????????????????????????????????? | | ?????????????????????????????????????????????????? | | ?????????????????????????????????????????????????? | | ?????????????????????????????????????????????????? | | ?????????????????????????????????????????????????? | | ?????????????????????????????????????????????????? | | ?????????????????????????????????????????????????? | +----------------------------------------------------+ Best States ------------- Heat Dissipation 39 Energy Generation 10 Energy Capacity 250 Matter Stores 290 Matter Capacity 300 Sight Range 16 Terrain Scan Range 16 Terrain Scan Density 10 Evasion (%) 55 Item Schematics ----------------- None Robot Schematics ------------------ None Fabricated ------------ Nothing Repaired ---------- Nothing Studied --------- None Alien Tech Used ----------------- None Achievements -------------- DATA ERROR: Steam Global Achievement% Organ Harvest Strength In Numbers There's More Where That Came From Challenges ------------ None Game ------ Seed FusionProtonCoupler Manual? 0 Play Time 00:18:40 Cumulative 18.8 hours Start 2025.11.08 @ 21:21:46 End 2025.11.08 @ 21:39:36 Sessions 1 Manual Loads 0 Difficulty Rogue Special Mode None Game No. 40 Rogue 40 Adventurer 0 Explorer 0 Win Type - Total 0 Types 0/0/0/0/0/0/0/0/0/0 Lore% 9 Gallery% 23 Achievement% 10 Wizard Run 0 Options --------- Layout 1 ASCII 0 Keyboard 0 Movement Arrows Keybinds 0 Fullscreen 1 Font 24/Smallcaps Map View 50x35 Zoom Use 0% Tactical HUD 1 Map Filters NONE Filters NONE Steam 1 RUN: 2a8c2064-4289-440e-b8ec-0e7c3f115568